[Event "WYCC 2018 G14"]
[Site "Halkidiki"]
[Date "2018.10.29"]
[Round "10"]
[White "Velea, Anne-Marie"]
[Black "Nurgali, Nazerke"]
[Result "0-1"]
[ECO "B13"]
[WhiteElo "1859"]
[BlackElo "2263"]
[Annotator "NA"]
[PlyCount "116"]
[EventDate "2018.10.20"]
[EventType "swiss"]
[EventCountry "GRE"]
[SourceTitle "playchess.com"]
[Source "ChessBase"]
[SourceQuality "1"]
[TimeControl "40/5400+30:1800+30"]

1. e4 {[%emt 0:00:00]} c6 {[%emt 0:00:00]} 2. d4 {[%emt 0:00:00]} d5 {[%emt 0:00:00]} 3. exd5 {[%emt 0:00:00]} cxd5 {[%emt 0:00:00]} 4. Bd3 {[%emt 0:00:00]} Nc6 {[%emt 0:00:14]} 5. c3 {[%emt 0:00:00] LiveBook: 2416 Games} Nf6 {[%emt 0:00:21]} 6. Bf4 {[%emt 0:00:08]} g6 {[%emt 0:00:16]} 7. Nf3 {[%emt 0:00:16]} Bg7 {[%emt 0:00:17]} 8. Nbd2 {[%emt 0:00:50]} O-O {[%emt 0:00:48]} 9. O-O {[%emt 0:00:07]} Bf5 {[%emt 0:01:24]} 10. Bxf5 {[%emt 0:00:41]} gxf5 {[%emt 0:00:04]} 11. Ne5 {[%emt 0:00:27]} e6 {[%emt 0:02:35] B13: Caro-Kann: Exchange Variation and Panov-Botvinnik Attack} 12. Nxc6 {[%emt 0:04:34]} (12. Nd3 Kh8 13. h3 Rg8 14. Kh1 Ne4 15. f3 Nxd2 16. Qxd2 Ne7 17. g4 Ng6 18. gxf5 Nxf4 19. Qxf4 {½-½ (34) Kovalev,V (2636)-Popov,I (2609) Sochi 2017}) 12... bxc6 {[%emt 0:00:05]} 13. Be5 {[%emt 0:03:16]} Kh8 $146 {[%emt 0:04:55]} ({Predecessor:} 13... Ne4 14. Bxg7 Kxg7 15. Nxe4 fxe4 16. Qg4+ Kh8 17. f3 f5 18. Qf4 Qe7 19. Rae1 {½-½ (39) Angelov,B (2077)-Pantev,V (2387) Plovdiv 2011}) 14. Bxf6 {[%emt 0:08:17]} Bxf6 {[%emt 0:00:29]} 15. f4 {[%emt 0:02:22]} Rg8 {[%emt 0:00:38]} 16. Qh5 {[%emt 0:00:28]} Rg6 {[%emt 0:01:14]} 17. Nf3 {[%emt 0:02:30]} Qg8 {[%emt 0:00:58]} 18. Rf2 {[%emt 0:02:07]} Qg7 {[%emt 0:01:38]} 19. Ne5 {[%emt 0:01:33]} Bxe5 {[%emt 0:01:12]} 20. fxe5 {[%emt 0:01:47]} Rg8 {[%emt 0:01:14]} 21. Qf3 {[%emt 0:05:20]} Rg4 {[%emt 0:01:11]} 22. Re1 {[%emt 0:05:48]} Qh6 {[%emt 0:01:52]} 23. Kh1 {[%emt 0:05:17]} Rh4 {[%emt 0:01:49]} 24. g3 {[%emt 0:04:00]} Rhg4 {[%emt 0:03:12]} 25. Rg2 {[%emt 0:09:41]} R8g6 {[%emt 0:04:29]} ({Black should try} 25... f4 $17) 26. b4 {[%emt 0:10:48]} Qh3 $17 {[%emt 0:07:54]} 27. Reg1 {[%emt 0:06:37]} f4 {[%emt 0:17:16]} 28. Qf2 {[%emt 0:05:11]} h6 {[%emt 0:04:19]} 29. a3 {[%emt 0:12:19]} Rxg3 {[%emt 0:04:09]} 30. Rxg3 {[%emt 0:00:12]} fxg3 {[%emt 0:00:08]} 31. Rxg3 {[%emt 0:00:15]} Rxg3 {[%emt 0:00:17]} 32. Qxg3 {[%emt 0:00:18]} Qf1+ {[%emt 0:00:05]} 33. Qg1 {[%emt 0:00:07]} Qf3+ {[%emt 0:00:03]} 34. Qg2 {[%emt 0:00:04]} Qxc3 {[%emt 0:00:12]} 35. Qf2 {[%emt 0:00:38]} Kg8 {[%emt 0:04:38]} 36. Qf4 {[%emt 0:03:15]} Qa1+ {[%emt 0:04:03]} 37. Kg2 {[%emt 0:00:18]} Qb2+ {[%emt 0:00:09]} 38. Kf1 {[%emt 0:04:52]} Qb1+ {[%emt 0:01:02]} 39. Ke2 {[%emt 0:00:40]} Qc2+ {[%emt 0:00:25]} 40. Ke1 {[%emt 0:00:00]} Qg6 {[%emt 0:00:00]} 41. Ke2 {[%emt 0:02:06]} Kg7 {[%emt 0:02:16]} 42. Kf3 {[%emt 0:06:39]} Qg5 {[%emt 0:02:41]} 43. h4 {[%emt 0:00:55]} Qxf4+ {[%emt 0:06:38]} 44. Kxf4 {[%emt 0:00:05]} Kg6 {[%emt 0:00:03]} 45. Kg4 {[%emt 0:15:03]} f5+ {[%emt 0:01:53]} 46. exf6 {[%emt 0:00:19]} Kxf6 {[%emt 0:00:04]} 47. Kf4 {[%emt 0:00:29]} h5 {[%emt 0:00:27]} 48. a4 {[%emt 0:00:12]} a6 {[%emt 0:00:04]} 49. a5 {[%emt 0:00:14]} e5+ {[%emt 0:00:12]} 50. dxe5+ {[%emt 0:01:34]} Ke6 {[%emt 0:00:03]} 51. Kg5 {[%emt 0:00:58]} Kxe5 {[%emt 0:00:07]} 52. Kxh5 {[%emt 0:00:05]} Kf5 {[%emt 0:00:13]} 53. Kh6 {[%emt 0:00:05]} d4 {[%emt 0:00:06]} 54. h5 {[%emt 0:00:03]} Kf6 {[%emt 0:00:51]} 55. Kh7 {[%emt 0:00:06]} d3 {[%emt 0:00:13]} 56. h6 {[%emt 0:00:08]} d2 {[%emt 0:00:11]} 57. Kg8 {[%emt 0:00:05]} d1=Q {[%emt 0:00:07]} 58. h7 {[%emt 0:00:02]} Qd8# {[%emt 0:00:07]} 0-1

[Event "WYCC 2018 G14"]
[Site "Halkidiki"]
[Date "2018.10.29"]
[Round "10"]
[White "Tamrazyan, Gohar"]
[Black "Kostina, Veronika"]
[Result "1-0"]
[ECO "A06"]
[WhiteElo "1824"]
[BlackElo "1700"]
[Annotator "NA"]
[PlyCount "159"]
[EventDate "2018.10.20"]
[EventType "swiss"]
[EventCountry "GRE"]
[SourceTitle "playchess.com"]
[Source "ChessBase"]
[SourceQuality "1"]
[TimeControl "40/5400+30:1800+30"]

1. Nf3 {[%emt 0:00:00]} d5 {[%emt 0:00:00]} 2. e3 {[%emt 0:00:00]} c5 {[%emt 0:00:11]} 3. c4 {[%emt 0:00:00]} e6 {[%emt 0:00:43]} 4. d4 {[%emt 0:00:00]} Nc6 {[%emt 0:00:44]} 5. cxd5 {[%emt 0:05:59]} exd5 {[%emt 0:01:57]} 6. Bb5 {[%emt 0:05:54]} Nf6 {[%emt 0:05:54]} 7. O-O {[%emt 0:04:30]} Be6 {[%emt 0:04:32]} 8. Nc3 {[%emt 0:04:33]} Be7 {[%emt 0:08:50]} 9. dxc5 {[%emt 0:04:11]} Bxc5 {[%emt 0:02:17]} 10. Na4 {[%emt 0:03:02]} Bd6 {[%emt 0:05:20]} 11. Bxc6+ {[%emt 0:08:25]} bxc6 {[%emt 0:00:50]} 12. Qc2 {[%emt 0:01:26]} Rc8 {[%emt 0:08:36]} 13. Nc5 {[%emt 0:01:23]} Qe7 {[%emt 0:06:34]} 14. b4 {[%emt 0:01:26]} O-O {[%emt 0:10:47]} 15. Bb2 {[%emt 0:02:42]} Bxc5 {[%emt 0:13:45]} 16. Bxf6 {[%emt 0:02:36]} gxf6 {[%emt 0:02:57]} 17. Qxc5 {[%emt 0:00:41]} Qxc5 {[%emt 0:01:33]} 18. bxc5 {[%emt 0:00:01]} Bf5 {[%emt 0:02:25]} 19. Nd4 {[%emt 0:00:33]} Bg6 {[%emt 0:01:48]} 20. Rac1 {[%emt 0:08:27]} Rc7 {[%emt 0:02:39]} 21. Rc3 {[%emt 0:03:28]} Rb8 {[%emt 0:01:00]} 22. Rb3 {[%emt 0:00:49]} Rxb3 {[%emt 0:00:06]} 23. axb3 {[%emt 0:00:13]} Kf8 {[%emt 0:04:09]} 24. Ra1 {[%emt 0:05:18]} Ke7 {[%emt 0:00:53]} 25. Ra4 {[%emt 0:02:28]} Kd7 {[%emt 0:04:01]} 26. Rb4 {[%emt 0:01:39]} Kc8 {[%emt 0:01:34]} 27. f3 {[%emt 0:04:18]} f5 {[%emt 0:02:55]} 28. f4 {[%emt 0:01:49]} Kd7 {[%emt 0:02:05]} 29. Kf2 {[%emt 0:02:14]} Rc8 {[%emt 0:02:49]} 30. Rb7+ {[%emt 0:00:17]} Rc7 {[%emt 0:00:09]} 31. Rxc7+ {[%emt 0:00:33]} Kxc7 {[%emt 0:00:01]} 32. b4 {[%emt 0:02:43]} h6 {[%emt 0:01:01]} 33. Ke1 {[%emt 0:00:52]} Kb7 {[%emt 0:00:35]} 34. Kd2 {[%emt 0:00:19]} Kc7 {[%emt 0:02:48]} 35. Kc3 {[%emt 0:00:40]} Kb7 {[%emt 0:00:13]} 36. Kb3 {[%emt 0:00:34]} Bh7 {[%emt 0:00:15]} 37. Ka4 {[%emt 0:00:11]} Bg6 {[%emt 0:00:47]} 38. Ka5 {[%emt 0:01:30]} Bh7 {[%emt 0:00:33]} 39. g3 {[%emt 0:00:27]} Bg6 {[%emt 0:00:21]} 40. h4 {[%emt 0:00:00]} h5 {[%emt 0:00:00]} 41. Nf3 {[%emt 0:06:41]} Bh7 {[%emt 0:05:19]} 42. Ne5 {[%emt 0:06:21]} Bg6 {[%emt 0:00:11]} 43. Nd7 {[%emt 0:00:11]} Kc7 {[%emt 0:04:39]} 44. Nf6 {[%emt 0:00:19]} Kb7 {[%emt 0:00:39]} 45. Ne8 {[%emt 0:00:04]} f6 {[%emt 0:05:37]} 46. Nd6+ {[%emt 0:01:14]} Kc7 {[%emt 0:01:56]} 47. Ka6 {[%emt 0:01:13]} Kb8 {[%emt 0:00:10]} 48. b5 {[%emt 0:02:49]} cxb5 {[%emt 0:01:26]} 49. Nxb5 {[%emt 0:04:15]} Be8 {[%emt 0:01:33]} 50. Nd4 {[%emt 0:01:47]} Bd7 {[%emt 0:00:49]} 51. c6 {[%emt 0:00:56]} Bc8+ {[%emt 0:03:01]} 52. Kb5 {[%emt 0:00:21]} Kc7 {[%emt 0:01:00]} 53. Kc5 {[%emt 0:00:28]} a6 {[%emt 0:00:48]} 54. Nc2 {[%emt 0:02:01]} a5 {[%emt 0:01:59]} 55. Nd4 {[%emt 0:00:51]} a4 {[%emt 0:01:44]} 56. Nb5+ {[%emt 0:00:29]} Kb8 {[%emt 0:00:48]} 57. Kb4 {[%emt 0:01:09]} Be6 {[%emt 0:01:30]} 58. Kxa4 {[%emt 0:00:16]} d4 {[%emt 0:01:53]} 59. exd4 {[%emt 0:01:16]} Bd5 {[%emt 0:00:31]} 60. c7+ {[%emt 0:00:10]} Kb7 {[%emt 0:01:20]} 61. Kb4 {[%emt 0:01:42]} Bc6 {[%emt 0:00:49]} 62. Nd6+ {[%emt 0:00:53]} Kxc7 {[%emt 0:00:16]} 63. Nxf5 {[%emt 0:00:22]} Bf3 {[%emt 0:00:51]} 64. Kc5 {[%emt 0:00:14]} Kd7 {[%emt 0:00:43]} 65. d5 {[%emt 0:00:48]} Be4 {[%emt 0:01:07]} 66. Ng7 {[%emt 0:01:11]} Bf3 {[%emt 0:01:09]} 67. Nf5 {[%emt 0:07:02]} Be4 {[%emt 0:00:38]} 68. Ne3 {[%emt 0:00:18]} f5 {[%emt 0:01:15]} 69. Nc4 {[%emt 0:00:18]} Bg2 {[%emt 0:00:43]} 70. Kd4 {[%emt 0:00:39]} Be4 {[%emt 0:00:31]} 71. Ke5 {[%emt 0:00:13]} Ke7 {[%emt 0:00:42]} 72. Ne3 {[%emt 0:00:18]} Kd7 {[%emt 0:00:25]} 73. Nxf5 {[%emt 0:00:10]} Bc2 {[%emt 0:00:14]} 74. Ng7 {[%emt 0:00:22]} Bd1 {[%emt 0:00:11]} 75. f5 {[%emt 0:00:27]} Ke7 {[%emt 0:00:47]} 76. f6+ {[%emt 0:00:23]} Kf7 {[%emt 0:00:17]} 77. d6 {[%emt 0:00:23]} Bg4 {[%emt 0:00:24]} 78. Nxh5 {[%emt 0:00:09]} Ke8 {[%emt 0:01:27]} 79. Ng7+ {[%emt 0:00:23]} Kf7 {[%emt 0:00:30]} 80. h5 {[%emt 0:00:10]} 1-0

[Event "WYCC 2018 G14"]
[Site "Halkidiki"]
[Date "2018.10.29"]
[Round "10"]
[White "Kouta, Antonia"]
[Black "Hernandez Guerra, Luna Yue"]
[Result "1/2-1/2"]
[ECO "C03"]
[WhiteElo "1812"]
[BlackElo "1659"]
[Annotator "NA"]
[PlyCount "140"]
[EventDate "2018.10.20"]
[EventType "swiss"]
[EventCountry "GRE"]
[SourceTitle "playchess.com"]
[Source "ChessBase"]
[SourceQuality "1"]
[TimeControl "40/5400+30:1800+30"]

1. e4 {[%emt 0:00:00]} e6 {[%emt 0:00:00]} 2. d4 {[%emt 0:00:00]} d5 {[%emt 0:00:00]} 3. Nd2 {[%emt 0:00:00]} Be7 {[%emt 0:00:00]} 4. Bd3 {[%emt 0:01:18]} c5 {[%emt 0:00:12]} 5. dxc5 {[%emt 0:02:58]} Nf6 {[%emt 0:00:43]} 6. Qe2 {[%emt 0:05:59]} O-O {[%emt 0:05:09]} 7. Ngf3 {[%emt 0:03:58]} a5 {[%emt 0:01:00]} 8. O-O {[%emt 0:04:45]} Na6 {[%emt 0:01:11]} 9. exd5 {[%emt 0:08:38]} Nxd5 {[%emt 0:04:32]} 10. Ne4 {[%emt 0:06:14]} f5 {[%emt 0:09:59]} 11. Nd6 {[%emt 0:10:15]} Nxc5 {[%emt 0:11:14]} 12. Nxc8 {[%emt 0:01:15]} Rxc8 {[%emt 0:00:39]} 13. Bb5 {[%emt 0:02:08]} Qc7 {[%emt 0:07:41]} 14. a3 {[%emt 0:11:46]} Bf6 {[%emt 0:03:38]} 15. Rb1 {[%emt 0:02:49]} Kh8 {[%emt 0:03:44]} 16. Re1 {[%emt 0:03:19]} Qb6 {[%emt 0:10:19]} 17. Bd3 {[%emt 0:12:25]} Nxd3 {[%emt 0:01:59]} 18. Qxd3 {[%emt 0:00:42]} Rfd8 {[%emt 0:02:36]} 19. Qb3 {[%emt 0:01:58]} Qc6 {[%emt 0:10:31]} 20. c3 {[%emt 0:00:56]} a4 {[%emt 0:01:09]} 21. Qc2 {[%emt 0:00:43]} h6 {[%emt 0:00:54]} 22. Qe2 {[%emt 0:03:24]} Re8 {[%emt 0:01:37]} 23. Ne5 {[%emt 0:00:33]} Qc7 {[%emt 0:01:59]} 24. Bd2 {[%emt 0:00:49]} Rcd8 {[%emt 0:01:20]} 25. Rbd1 {[%emt 0:02:44]} Bxe5 {[%emt 0:00:50]} 26. Qxe5 {[%emt 0:00:05]} Qxe5 {[%emt 0:00:05]} 27. Rxe5 {[%emt 0:00:04]} Nb6 {[%emt 0:00:34]} 28. Ree1 {[%emt 0:01:50]} Nc4 {[%emt 0:00:24]} 29. Bc1 {[%emt 0:00:13]} e5 {[%emt 0:00:24]} 30. Kf1 {[%emt 0:00:50]} Kg8 {[%emt 0:00:44]} 31. Ke2 {[%emt 0:00:43]} Kf7 {[%emt 0:01:03]} 32. Rxd8 Rxd8 {[%emt 0:01:09]} 33. Rd1 {[%emt 0:06:01]} Rxd1 {[%emt 0:00:23]} 34. Kxd1 {[%emt 0:00:04]} f4 {[%emt 0:02:20]} 35. Kc2 {[%emt 0:02:03]} Na5 {[%emt 0:01:00]} 36. c4 {[%emt 0:02:08]} Nxc4 {[%emt 0:01:05]} 37. Kc3 {[%emt 0:00:30]} Na5 {[%emt 0:00:45]} 38. Bd2 {[%emt 0:00:31]} Nb3 {[%emt 0:01:32]} 39. Be1 {[%emt 0:01:17]} Nd4 {[%emt 0:01:39]} 40. Kc4 {[%emt 0:00:00]} Ke6 {[%emt 0:00:00]} 41. Bc3 {[%emt 0:07:11]} f3 {[%emt 0:07:40]} 42. g3 {[%emt 0:05:06]} Nc6 {[%emt 0:07:54]} 43. Kd3 {[%emt 0:12:14]} Kd5 {[%emt 0:01:11]} 44. Ke3 {[%emt 0:01:12]} Nd4 {[%emt 0:00:04]} 45. Kd3 {[%emt 0:00:29]} Nf5 {[%emt 0:01:13]} 46. g4 {[%emt 0:01:44]} e4+ {[%emt 0:00:45]} 47. Kd2 {[%emt 0:00:31]} Nd4 {[%emt 0:00:24]} 48. Ke3 {[%emt 0:00:30]} Ne6 {[%emt 0:00:21]} 49. Bb4 {[%emt 0:02:16]} g6 {[%emt 0:01:36]} 50. Bc3 {[%emt 0:01:16]} Nd8 {[%emt 0:05:01]} 51. Bg7 {[%emt 0:01:31]} Nf7 {[%emt 0:00:26]} 52. Bf8 {[%emt 0:01:00]} Ne5 {[%emt 0:00:17]} 53. h3 {[%emt 0:00:50]} Nc4+ {[%emt 0:01:33]} 54. Kf4 {[%emt 0:00:07]} Nxb2 {[%emt 0:01:27]} 55. Bxh6 {[%emt 0:00:23]} Nc4 {[%emt 0:00:34]} 56. Bf8 {[%emt 0:00:53]} b5 {[%emt 0:00:30]} 57. h4 {[%emt 0:01:48]} Ne5 {[%emt 0:01:14]} 58. Bg7 {[%emt 0:02:24]} Nd3+ {[%emt 0:01:56]} 59. Ke3 {[%emt 0:00:28]} Ne5 {[%emt 0:03:14]} 60. Kf4 {[%emt 0:00:11]} Nc6 {[%emt 0:00:31]} 61. h5 {[%emt 0:00:53]} g5+ {[%emt 0:02:30]} 62. Kg3 {[%emt 0:00:52]} Ne5 {[%emt 0:01:20]} 63. h6 {[%emt 0:00:23]} Ng6 {[%emt 0:00:52]} 64. h7 {[%emt 0:01:01]} Kc4 {[%emt 0:00:09]} 65. Bb2 {[%emt 0:00:36]} Kb3 {[%emt 0:00:29]} 66. Bc1 {[%emt 0:00:15]} Nh8 {[%emt 0:00:33]} 67. Kh2 {[%emt 0:00:57]} Nf7 {[%emt 0:00:18]} 68. Kg3 {[%emt 0:00:28]} Nh8 {[%emt 0:02:26]} 69. Kh2 {[%emt 0:00:08]} Nf7 {[%emt 0:00:50]} 70. Kg3 {[%emt 0:00:04]} Nh8 {[%emt 0:00:10]} 1/2-1/2

[Event "WYCC 2018 G14"]
[Site "Halkidiki"]
[Date "2018.10.29"]
[Round "10"]
[White "Sleurs, Juliette"]
[Black "Galvan Cipriani, Viviana"]
[Result "1/2-1/2"]
[ECO "B31"]
[WhiteElo "1812"]
[BlackElo "2109"]
[Annotator "NA"]
[PlyCount "45"]
[EventDate "2018.10.20"]
[EventType "swiss"]
[EventCountry "GRE"]
[SourceTitle "playchess.com"]
[Source "ChessBase"]
[SourceQuality "1"]
[TimeControl "40/5400+30:1800+30"]

1. e4 {[%emt 0:00:00]} c5 {[%emt 0:00:00]} 2. Nf3 {[%emt 0:00:00]} Nc6 {[%emt 0:00:00]} 3. Bb5 {[%emt 0:00:00]} g6 {[%emt 0:00:08]} 4. Bxc6 {[%emt 0:00:00]} bxc6 {[%emt 0:00:06]} 5. O-O {[%emt 0:00:08]} Bg7 {[%emt 0:00:05]} 6. Re1 {[%emt 0:00:08]} Nh6 {[%emt 0:00:04]} 7. c3 {[%emt 0:00:36]} O-O {[%emt 0:00:15]} 8. h3 {[%emt 0:00:44]} f5 {[%emt 0:00:28]} 9. e5 {[%emt 0:01:15]} Nf7 {[%emt 0:00:15]} 10. d4 {[%emt 0:01:08]} cxd4 {[%emt 0:06:35]} 11. cxd4 {[%emt 0:00:24]} c5 {[%emt 0:12:36]} 12. d5 $11 {[%emt 0:07:34] LiveBook: 9 Games} d6 {[%emt 0:00:40]} 13. e6 {[%emt 0:08:41]} Ne5 {[%emt 0:00:18]} 14. Nxe5 {[%emt 0:04:38]} dxe5 {[%emt 0:00:44]} 15. Nc3 {[%emt 0:04:25]} Rb8 {[%emt 0:06:49]} 16. Na4 {[%emt 0:08:51]} Rb4 {[%emt 0:08:10]} 17. Be3 {[%emt 0:07:49]} c4 {[%emt 0:04:25]} 18. Bc5 {[%emt 0:17:38]} Rb5 {[%emt 0:07:37]} 19. d6 {[%emt 0:03:39]} exd6 {[%emt 0:00:14]} 20. e7 {[%emt 0:02:14]} Qxe7 {[%emt 0:01:34]} 21. Bxd6 {[%emt 0:00:22]} Qf7 {[%emt 0:05:38]} 22. Bxf8 {[%emt 0:00:22]} Qxf8 {[%emt 0:00:06]} 23. Qe2 {[%emt 0:02:34]} 1/2-1/2

[Event "WYCC 2018 G14"]
[Site "Halkidiki"]
[Date "2018.10.29"]
[Round "10"]
[White "Jaufarally, Nadia"]
[Black "Toncheva, Nadya"]
[Result "1-0"]
[ECO "B40"]
[WhiteElo "1810"]
[BlackElo "2002"]
[Annotator "NA"]
[PlyCount "123"]
[EventDate "2018.10.20"]
[EventType "swiss"]
[EventCountry "GRE"]
[SourceTitle "playchess.com"]
[Source "ChessBase"]
[SourceQuality "1"]
[TimeControl "40/5400+30:1800+30"]

1. e4 {[%emt 0:00:00]} c5 {[%emt 0:00:00]} 2. Nf3 {[%emt 0:00:00]} e6 {[%emt 0:00:00]} 3. d3 {[%emt 0:00:01]} Nc6 {[%emt 0:00:05]} 4. g3 {[%emt 0:00:42]} g6 {[%emt 0:00:41]} 5. Bg2 {[%emt 0:02:37]} Bg7 {[%emt 0:00:09]} 6. h4 {[%emt 0:02:01]} Nge7 {[%emt 0:00:23]} 7. c3 {[%emt 0:02:23]} d5 {[%emt 0:01:17]} 8. Qe2 {[%emt 0:03:31]} O-O {[%emt 0:02:17]} 9. h5 {[%emt 0:06:26]} b6 {[%emt 0:02:30]} 10. hxg6 {[%emt 0:04:31]} hxg6 {[%emt 0:00:10]} 11. Na3 {[%emt 0:08:56]} Bb7 {[%emt 0:04:02]} 12. Bd2 {[%emt 0:04:12]} a6 {[%emt 0:02:25]} 13. O-O-O {[%emt 0:04:03]} d4 {[%emt 0:00:11]} 14. Bh6 {[%emt 0:11:13]} dxc3 {[%emt 0:01:22]} 15. Qe3 {[%emt 0:04:05]} cxb2+ {[%emt 0:02:19]} 16. Kb1 {[%emt 0:00:09]} f6 {[%emt 0:00:33]} 17. Nc4 {[%emt 0:18:30]} Nd4 {[%emt 0:03:34]} 18. Bxg7 $18 {[%emt 0:06:14]} Kxg7 {[%emt 0:00:06]} 19. Nxd4 {[%emt 0:06:05]} cxd4 {[%emt 0:00:34]} 20. Qh6+ {[%emt 0:00:22]} Kf7 {[%emt 0:00:04]} 21. e5 {[%emt 0:01:13]} Rh8 {[%emt 0:18:22]} 22. Qxh8 {[%emt 0:05:35]} Qxh8 {[%emt 0:00:04]} 23. Rxh8 {[%emt 0:00:05]} Bxg2 {[%emt 0:03:47]} 24. Nd6+ {[%emt 0:02:20]} Kg7 {[%emt 0:00:05]} 25. Rxa8 {[%emt 0:00:06]} Bxa8 {[%emt 0:00:06]} 26. Ne8+ {[%emt 0:00:17]} Kf7 {[%emt 0:00:19]} 27. Nxf6 {[%emt 0:00:34]} Bf3 {[%emt 0:00:20]} 28. Re1 {[%emt 0:01:15]} Nc6 {[%emt 0:00:16]} 29. Ne4 {[%emt 0:00:49]} Ke7 {[%emt 0:01:08]} 30. Ng5 {[%emt 0:00:47]} Bd5 {[%emt 0:00:06]} 31. a3 {[%emt 0:00:28]} b5 {[%emt 0:04:03]} 32. Kxb2 {[%emt 0:00:26]} b4 {[%emt 0:00:22]} 33. Nh3 {[%emt 0:00:32]} Bf3 {[%emt 0:00:20]} 34. Ng5 {[%emt 0:02:12]} Bd5 {[%emt 0:00:06]} 35. f4 {[%emt 0:00:18]} a5 {[%emt 0:00:15]} 36. Re2 {[%emt 0:01:59]} bxa3+ {[%emt 0:01:38]} 37. Kxa3 {[%emt 0:00:06]} Nb4 {[%emt 0:00:03]} 38. Rd2 {[%emt 0:00:15]} Bc6 {[%emt 0:00:21]} 39. Ne4 {[%emt 0:01:11]} Bb5 {[%emt 0:04:07]} 40. Nc5 {[%emt 0:00:00]} Kf7 {[%emt 0:00:00]} 41. Nb7 {[%emt 0:05:48]} Ba6 {[%emt 0:04:24]} 42. Nd6+ {[%emt 0:04:19]} Kg7 {[%emt 0:00:25]} 43. Ka4 {[%emt 0:01:01]} Nxd3 {[%emt 0:03:32]} 44. Kxa5 {[%emt 0:00:24]} Nc5 {[%emt 0:00:03]} 45. Kb4 {[%emt 0:03:10]} Nd3+ {[%emt 0:01:17]} 46. Ka3 {[%emt 0:03:42]} g5 {[%emt 0:01:42]} 47. Ne8+ {[%emt 0:00:52]} Kf7 {[%emt 0:00:03]} 48. Nc7 {[%emt 0:00:33]} Bc4 {[%emt 0:00:03]} 49. Rc2 {[%emt 0:00:31]} Bd5 {[%emt 0:01:49]} 50. Nxd5 {[%emt 0:00:06]} exd5 {[%emt 0:00:06]} 51. Rd2 {[%emt 0:01:05]} Ne1 {[%emt 0:00:05]} 52. Kb4 {[%emt 0:01:51]} gxf4 {[%emt 0:00:24]} 53. gxf4 {[%emt 0:00:08]} Ke6 {[%emt 0:01:06]} 54. Rxd4 {[%emt 0:00:43]} Nc2+ {[%emt 0:01:19]} 55. Kc5 {[%emt 0:00:06]} Ne3 {[%emt 0:00:05]} 56. Rd3 {[%emt 0:01:25]} Ng2 {[%emt 0:00:14]} 57. Rf3 {[%emt 0:00:25]} Nh4 {[%emt 0:00:49]} 58. Rh3 {[%emt 0:00:22]} Ng2 {[%emt 0:00:06]} 59. Rh6+ {[%emt 0:00:32]} Kf5 {[%emt 0:00:07]} 60. Rf6+ {[%emt 0:02:21]} Ke4 {[%emt 0:00:04]} 61. e6 {[%emt 0:00:13]} Nxf4 {[%emt 0:00:06]} 62. Rxf4+ {[%emt 0:00:05]} 1-0

[Event "WYCC 2018 G14"]
[Site "Halkidiki"]
[Date "2018.10.29"]
[Round "10"]
[White "Zeliantsova, Kseniya"]
[Black "Wikar, Martyna"]
[Result "0-1"]
[ECO "B10"]
[WhiteElo "1804"]
[BlackElo "2024"]
[Annotator "NA"]
[PlyCount "72"]
[EventDate "2018.10.20"]
[EventType "swiss"]
[EventCountry "GRE"]
[SourceTitle "playchess.com"]
[Source "ChessBase"]
[SourceQuality "1"]
[TimeControl "40/5400+30:1800+30"]

1. e4 {[%emt 0:00:00]} c6 {[%emt 0:00:00]} 2. Nf3 {[%emt 0:00:00]} d5 {[%emt 0:00:14]} 3. Nc3 {[%emt 0:00:00]} dxe4 {[%emt 0:01:46]} 4. Nxe4 {[%emt 0:00:00]} Nf6 {[%emt 0:01:08]} 5. Nxf6+ {[%emt 0:05:28]} gxf6 {[%emt 0:00:08]} 6. d4 {[%emt 0:00:18]} Bf5 {[%emt 0:00:30]} 7. Bf4 {[%emt 0:03:25]} Nd7 {[%emt 0:01:57]} 8. Qd2 {[%emt 0:02:33]} Nb6 {[%emt 0:01:18]} 9. c4 {[%emt 0:02:47]} e6 {[%emt 0:03:40]} 10. Nh4 {[%emt 0:18:49]} Bg6 {[%emt 0:02:13]} 11. Nxg6 {[%emt 0:00:23]} hxg6 {[%emt 0:00:15]} 12. O-O-O {[%emt 0:02:38]} Qd7 {[%emt 0:00:40]} 13. Be2 {[%emt 0:04:26]} Be7 {[%emt 0:04:40]} 14. h4 {[%emt 0:02:36]} a5 {[%emt 0:04:17]} 15. Qe3 {[%emt 0:05:10]} Nc8 {[%emt 0:09:13]} 16. g4 {[%emt 0:03:58]} Nd6 {[%emt 0:03:45]} 17. Kb1 {[%emt 0:09:30]} a4 {[%emt 0:10:04]} 18. c5 {[%emt 0:03:38]} Nb5 {[%emt 0:05:01]} 19. h5 {[%emt 0:00:26]} g5 {[%emt 0:01:32]} 20. Bg3 {[%emt 0:00:09]} Rd8 {[%emt 0:12:29]} 21. Bxb5 {[%emt 0:01:53]} cxb5 {[%emt 0:00:05]} 22. d5 {[%emt 0:02:55]} exd5 {[%emt 0:04:39]} 23. Rhe1 {[%emt 0:00:06]} Kf8 {[%emt 0:01:55]} 24. f4 {[%emt 0:05:52]} d4 {[%emt 0:02:43]} 25. Qf3 {[%emt 0:00:41]} Qd5 {[%emt 0:03:06]} 26. Re4 {[%emt 0:04:57]} f5 {[%emt 0:02:51]} 27. gxf5 {[%emt 0:00:45]} Qxf5 {[%emt 0:00:22]} 28. Ka1 {[%emt 0:00:06]} g4 {[%emt 0:00:55]} 29. Qe2 {[%emt 0:01:04]} d3 {[%emt 0:01:37]} 30. Rxd3 {[%emt 0:01:13]} Rxd3 {[%emt 0:00:11]} 31. Qxd3 {[%emt 0:00:08]} Rxh5 {[%emt 0:02:28]} 32. a3 {[%emt 0:07:14]} Qxc5 {[%emt 0:02:29]} 33. Qd7 {[%emt 0:02:01]} Rd5 {[%emt 0:02:28]} 34. Qxb7 {[%emt 0:00:27]} Rd1+ {[%emt 0:01:07]} 35. Ka2 {[%emt 0:00:04]} Bf6 {[%emt 0:02:49]} 36. Rb4 {[%emt 0:01:39]} Qc1 {[%emt 0:02:01]} 0-1

[Event "WYCC 2018 G14"]
[Site "Halkidiki"]
[Date "2018.10.29"]
[Round "10"]
[White "Somton, Anita"]
[Black "Ruzic, Pia Marie"]
[Result "1-0"]
[ECO "C15"]
[WhiteElo "1787"]
[BlackElo "1691"]
[Annotator "NA"]
[PlyCount "63"]
[EventDate "2018.10.20"]
[EventType "swiss"]
[EventCountry "GRE"]
[SourceTitle "playchess.com"]
[Source "ChessBase"]
[SourceQuality "1"]
[TimeControl "40/5400+30:1800+30"]

1. e4 {[%emt 0:00:00]} e6 {[%emt 0:00:00]} 2. d4 {[%emt 0:00:00]} d5 {[%emt 0:00:00]} 3. Nc3 {[%emt 0:00:20]} Bb4 {[%emt 0:00:00]} 4. exd5 {[%emt 0:01:32]} exd5 {[%emt 0:00:25]} 5. Bd3 {[%emt 0:00:59]} Nc6 {[%emt 0:02:20]} 6. Nge2 {[%emt 0:02:16]} Nge7 {[%emt 0:00:11]} 7. a3 {[%emt 0:01:12]} Bxc3+ {[%emt 0:02:37]} 8. bxc3 {[%emt 0:00:29]} Bf5 {[%emt 0:00:18]} 9. Ng3 {[%emt 0:01:35]} Bxd3 {[%emt 0:01:30]} 10. cxd3 {[%emt 0:00:59]} O-O {[%emt 0:12:04]} 11. O-O {[%emt 0:02:39]} Qc8 {[%emt 0:03:26]} 12. Rb1 {[%emt 0:05:08]} b6 {[%emt 0:03:32]} 13. Qf3 {[%emt 0:06:06]} Nd8 {[%emt 0:01:45]} 14. c4 {[%emt 0:03:28]} Ne6 {[%emt 0:08:51]} 15. Bb2 {[%emt 0:04:04]} Qd7 {[%emt 0:00:52]} 16. Rfd1 {[%emt 0:05:11]} h6 {[%emt 0:02:37]} 17. c5 {[%emt 0:11:18]} bxc5 {[%emt 0:04:02]} 18. dxc5 {[%emt 0:01:08]} Nxc5 {[%emt 0:00:16]} 19. Bxg7 {[%emt 0:05:04]} Qd6 {[%emt 0:05:29]} 20. Bxf8 {[%emt 0:01:33]} Rxf8 {[%emt 0:00:08]} 21. Rb4 {[%emt 0:02:06]} Kh7 {[%emt 0:04:19]} 22. Rg4 {[%emt 0:04:13]} Nd7 {[%emt 0:01:30]} 23. d4 {[%emt 0:03:00]} Nf6 {[%emt 0:00:53]} 24. Rf4 {[%emt 0:00:30]} Nfg8 {[%emt 0:00:59]} 25. Rxf7+ {[%emt 0:04:30]} Rxf7 {[%emt 0:00:05]} 26. Qxf7+ {[%emt 0:00:05]} Kh8 {[%emt 0:00:05]} 27. Nh5 {[%emt 0:00:45]} Qg6 {[%emt 0:00:09]} 28. Qxg6 {[%emt 0:00:09]} Nxg6 {[%emt 0:00:01]} 29. Rc1 {[%emt 0:00:41]} N6e7 {[%emt 0:00:47]} 30. Rxc7 {[%emt 0:00:22]} Nf5 {[%emt 0:00:18]} 31. Nf4 {[%emt 0:01:31]} Nge7 {[%emt 0:00:34]} 32. g4 {[%emt 0:01:41]} 1-0